{"text_format":"1","workbook":"xlsx","n_sheets":2,"sheets":["Template All ","dropdown info"],"not_rendered":{"charts":0,"images":0,"macros":1,"external_links":0,"defined_names":33,"comments":0,"pivot_tables":0},"unopened":[],"bounds":{"document_bytes":16777216,"sheet_cells":100000,"rows_first":2000,"rows_last":500,"rows_between":2000,"halvings":0,"cell_chars":16384,"cell_head_chars":4096},"cells_cut":0,"cells_raw":0,"read":"whole","date_system":"1900"}

{"sheet":"Template All ","index":0,"n_rows":248,"n_cols":10,"rows_kept":248,"cut":false,"hidden":false,"merged":[[4,0,4,1],[4,2,4,3],[0,0,0,9],[1,0,1,1],[2,0,2,3],[3,0,3,1],[3,2,3,3],[5,0,5,1],[5,2,5,3],[6,0,6,1],[6,2,6,3],[7,0,7,1],[7,2,7,4],[8,0,8,1],[9,0,9,1],[16,0,16,1],[17,0,17,1],[9,2,9,3],[10,0,10,1],[11,0,11,1],[11,2,11,3],[19,0,19,5],[13,0,13,1],[14,0,14,1],[15,0,15,1],[12,0,12,1]]}
["RESPONSE TEMPLATE: Public consultation on the draft Eurosystem oversight framework for electronic payment instruments, schemes and arrangements"]
[]
["CONTACT DETAILS (will not be published)"]
["Name of the organisation"]
["Name of the contact person"]
["Email address of the contact person"]
["Phone number of the contact person"]
["Type of respondent"]
[]
["Disclose comments",null,"Yes"]
[]
[{"$f":"IF(J25=TRUE,\"Type of scheme or arrangement\",\"\")","v":""}]
[{"$f":"IF(J25=TRUE,\"Number of end users at the end of 2019 (in thousands)\",)","v":0}]
[{"$f":"IF(J25=TRUE,\"Number of adhering service providers at the end of 2019\",)","v":0}]
[{"$f":"IF(J25=TRUE, \"Total volume of euro-denominated transfers of value at the end of 2019 (in millions)\",)","v":0}]
[{"$f":"IF(J25=TRUE,\"Total value of euro-denominated transfers or euro equivalent at the end of 2019 (in EUR billions)\",)","v":0}]
[{"$f":"IF(J25=TRUE,\"Number of countries in which the payment scheme/arrangement is actively offered to end users (payers and payees) for transfer of value at the end of 2019, or\",)","v":0}]
[{"$f":"IF(J25=TRUE,\"Number of countries in which the payment scheme/arrangement is actively offered to payment service providers for transfer of value at the end of 2019\",)","v":0}]
[]
[]
[]
["No","Comment by","Document","Page","Section","Original Text","Comment","Reasoning",0]
[null,null,"[Please indicate the document concerned using the drop-down list]",null,"[Please indicate the part concerned using the drop-down list]","[Please provide the text you are commneting on (or indicate a figure or table)]","[Please provide your input]","[Please provide your input]",0]
[1,null,null,null,null,null,null,null,"Authority",false]
[2,null,null,null,null,null,null,null,"Scheme & arrangement",false]
[3,null,null,null,null,null,null,null,"Payment service provider",false]
[4,null,null,null,null,null,null,null,"Associations",false]
[5,null,null,null,null,null,null,null,"Private individual",false]
[6,null,null,null,null,null,null,null,"Other",false]
[7]
[8]
[9]
[10]
[11]
[12]
[13]
[14]
[15]
[16]
[17]
[18]
[19]
[20]
[21]
[22]
[23]
[24]
[25]
[26]
[27]
[28]
[29]
[30]
[31]
[32]
[33]
[34]
[35]
[36]
[37]
[38]
[39]
[40]
[41]
[42]
[43]
[44]
[45]
[46]
[47]
[48]
[49]
[50]
[51]
[52]
[53]
[54]
[55]
[56]
[57]
[58]
[59]
[60]
[61]
[62]
[63]
[64]
[65]
[66]
[67]
[68]
[69]
[70]
[71]
[72]
[73]
[74]
[75]
[76]
[77]
[78]
[79]
[80]
[81]
[82]
[83]
[84]
[85]
[86]
[87]
[88]
[89]
[90]
[91]
[92]
[93]
[94]
[95]
[96]
[97]
[98]
[99]
[100]
[101]
[null,null,null,{"$f":"IF(ISBLANK(E125)=TRUE,\"\",VLOOKUP(E125,'dropdown info'!$C$2:$C$5,2))","v":""}]
[null,null,{"$f":"IF(ISBLANK(D126)=TRUE,\"\",VLOOKUP(D126,'dropdown info'!$C$2:$C$5,2))","v":""}]
[null,null,{"$f":"IF(ISBLANK(D127)=TRUE,\"\",VLOOKUP(D127,'dropdown info'!$C$2:$C$5,2))","v":""}]
[null,null,{"$f":"IF(ISBLANK(D128)=TRUE,\"\",VLOOKUP(D128,'dropdown info'!$C$2:$C$5,2))","v":""}]
[null,null,{"$f":"IF(ISBLANK(D129)=TRUE,\"\",VLOOKUP(D129,'dropdown info'!$C$2:$C$5,2))","v":""}]
[null,null,{"$f":"IF(ISBLANK(D130)=TRUE,\"\",VLOOKUP(D130,'dropdown info'!$C$2:$C$5,2))","v":""}]
[null,null,{"$f":"IF(ISBLANK(D131)=TRUE,\"\",VLOOKUP(D131,'dropdown info'!$C$2:$C$5,2))","v":""}]
[null,null,{"$f":"IF(ISBLANK(D132)=TRUE,\"\",VLOOKUP(D132,'dropdown info'!$C$2:$C$5,2))","v":""}]
[null,null,{"$f":"IF(ISBLANK(D133)=TRUE,\"\",VLOOKUP(D133,'dropdown info'!$C$2:$C$5,2))","v":""}]
[null,null,{"$f":"IF(ISBLANK(D134)=TRUE,\"\",VLOOKUP(D134,'dropdown info'!$C$2:$C$5,2))","v":""}]
[null,null,{"$f":"IF(ISBLANK(D135)=TRUE,\"\",VLOOKUP(D135,'dropdown info'!$C$2:$C$5,2))","v":""}]
[null,null,{"$f":"IF(ISBLANK(D136)=TRUE,\"\",VLOOKUP(D136,'dropdown info'!$C$2:$C$5,2))","v":""}]
[null,null,{"$f":"IF(ISBLANK(D137)=TRUE,\"\",VLOOKUP(D137,'dropdown info'!$C$2:$C$5,2))","v":""}]
[null,null,{"$f":"IF(ISBLANK(D138)=TRUE,\"\",VLOOKUP(D138,'dropdown info'!$C$2:$C$5,2))","v":""}]
[null,null,{"$f":"IF(ISBLANK(D139)=TRUE,\"\",VLOOKUP(D139,'dropdown info'!$C$2:$C$5,2))","v":""}]
[null,null,{"$f":"IF(ISBLANK(D140)=TRUE,\"\",VLOOKUP(D140,'dropdown info'!$C$2:$C$5,2))","v":""}]
[null,null,{"$f":"IF(ISBLANK(D141)=TRUE,\"\",VLOOKUP(D141,'dropdown info'!$C$2:$C$5,2))","v":""}]
[null,null,{"$f":"IF(ISBLANK(D142)=TRUE,\"\",VLOOKUP(D142,'dropdown info'!$C$2:$C$5,2))","v":""}]
[null,null,{"$f":"IF(ISBLANK(D143)=TRUE,\"\",VLOOKUP(D143,'dropdown info'!$C$2:$C$5,2))","v":""}]
[null,null,{"$f":"IF(ISBLANK(D144)=TRUE,\"\",VLOOKUP(D144,'dropdown info'!$C$2:$C$5,2))","v":""}]
[null,null,{"$f":"IF(ISBLANK(D145)=TRUE,\"\",VLOOKUP(D145,'dropdown info'!$C$2:$C$5,2))","v":""}]
[null,null,{"$f":"IF(ISBLANK(D146)=TRUE,\"\",VLOOKUP(D146,'dropdown info'!$C$2:$C$5,2))","v":""}]
[null,null,{"$f":"IF(ISBLANK(D147)=TRUE,\"\",VLOOKUP(D147,'dropdown info'!$C$2:$C$5,2))","v":""}]
[null,null,{"$f":"IF(ISBLANK(D148)=TRUE,\"\",VLOOKUP(D148,'dropdown info'!$C$2:$C$5,2))","v":""}]
[null,null,{"$f":"IF(ISBLANK(D149)=TRUE,\"\",VLOOKUP(D149,'dropdown info'!$C$2:$C$5,2))","v":""}]
[null,null,{"$f":"IF(ISBLANK(D150)=TRUE,\"\",VLOOKUP(D150,'dropdown info'!$C$2:$C$5,2))","v":""}]
[null,null,{"$f":"IF(ISBLANK(D151)=TRUE,\"\",VLOOKUP(D151,'dropdown info'!$C$2:$C$5,2))","v":""}]
[null,null,{"$f":"IF(ISBLANK(D152)=TRUE,\"\",VLOOKUP(D152,'dropdown info'!$C$2:$C$5,2))","v":""}]
[null,null,{"$f":"IF(ISBLANK(D153)=TRUE,\"\",VLOOKUP(D153,'dropdown info'!$C$2:$C$5,2))","v":""}]
[null,null,{"$f":"IF(ISBLANK(D154)=TRUE,\"\",VLOOKUP(D154,'dropdown info'!$C$2:$C$5,2))","v":""}]
[null,null,{"$f":"IF(ISBLANK(D155)=TRUE,\"\",VLOOKUP(D155,'dropdown info'!$C$2:$C$5,2))","v":""}]
[null,null,{"$f":"IF(ISBLANK(D156)=TRUE,\"\",VLOOKUP(D156,'dropdown info'!$C$2:$C$5,2))","v":""}]
[null,null,{"$f":"IF(ISBLANK(D157)=TRUE,\"\",VLOOKUP(D157,'dropdown info'!$C$2:$C$5,2))","v":""}]
[null,null,{"$f":"IF(ISBLANK(D158)=TRUE,\"\",VLOOKUP(D158,'dropdown info'!$C$2:$C$5,2))","v":""}]
[null,null,{"$f":"IF(ISBLANK(D159)=TRUE,\"\",VLOOKUP(D159,'dropdown info'!$C$2:$C$5,2))","v":""}]
[null,null,{"$f":"IF(ISBLANK(D160)=TRUE,\"\",VLOOKUP(D160,'dropdown info'!$C$2:$C$5,2))","v":""}]
[null,null,{"$f":"IF(ISBLANK(D161)=TRUE,\"\",VLOOKUP(D161,'dropdown info'!$C$2:$C$5,2))","v":""}]
[null,null,{"$f":"IF(ISBLANK(D162)=TRUE,\"\",VLOOKUP(D162,'dropdown info'!$C$2:$C$5,2))","v":""}]
[null,null,{"$f":"IF(ISBLANK(D163)=TRUE,\"\",VLOOKUP(D163,'dropdown info'!$C$2:$C$5,2))","v":""}]
[null,null,{"$f":"IF(ISBLANK(D164)=TRUE,\"\",VLOOKUP(D164,'dropdown info'!$C$2:$C$5,2))","v":""}]
[null,null,{"$f":"IF(ISBLANK(D165)=TRUE,\"\",VLOOKUP(D165,'dropdown info'!$C$2:$C$5,2))","v":""}]
[null,null,{"$f":"IF(ISBLANK(D166)=TRUE,\"\",VLOOKUP(D166,'dropdown info'!$C$2:$C$5,2))","v":""}]
[null,null,{"$f":"IF(ISBLANK(D167)=TRUE,\"\",VLOOKUP(D167,'dropdown info'!$C$2:$C$5,2))","v":""}]
[null,null,{"$f":"IF(ISBLANK(D168)=TRUE,\"\",VLOOKUP(D168,'dropdown info'!$C$2:$C$5,2))","v":""}]
[null,null,{"$f":"IF(ISBLANK(D169)=TRUE,\"\",VLOOKUP(D169,'dropdown info'!$C$2:$C$5,2))","v":""}]
[null,null,{"$f":"IF(ISBLANK(D170)=TRUE,\"\",VLOOKUP(D170,'dropdown info'!$C$2:$C$5,2))","v":""}]
[null,null,{"$f":"IF(ISBLANK(D171)=TRUE,\"\",VLOOKUP(D171,'dropdown info'!$C$2:$C$5,2))","v":""}]
[null,null,{"$f":"IF(ISBLANK(D172)=TRUE,\"\",VLOOKUP(D172,'dropdown info'!$C$2:$C$5,2))","v":""}]
[null,null,{"$f":"IF(ISBLANK(D173)=TRUE,\"\",VLOOKUP(D173,'dropdown info'!$C$2:$C$5,2))","v":""}]
[null,null,{"$f":"IF(ISBLANK(D174)=TRUE,\"\",VLOOKUP(D174,'dropdown info'!$C$2:$C$5,2))","v":""}]
[null,null,{"$f":"IF(ISBLANK(D175)=TRUE,\"\",VLOOKUP(D175,'dropdown info'!$C$2:$C$5,2))","v":""}]
[null,null,{"$f":"IF(ISBLANK(D176)=TRUE,\"\",VLOOKUP(D176,'dropdown info'!$C$2:$C$5,2))","v":""}]
[null,null,{"$f":"IF(ISBLANK(D177)=TRUE,\"\",VLOOKUP(D177,'dropdown info'!$C$2:$C$5,2))","v":""}]
[null,null,{"$f":"IF(ISBLANK(D178)=TRUE,\"\",VLOOKUP(D178,'dropdown info'!$C$2:$C$5,2))","v":""}]
[null,null,{"$f":"IF(ISBLANK(D179)=TRUE,\"\",VLOOKUP(D179,'dropdown info'!$C$2:$C$5,2))","v":""}]
[null,null,{"$f":"IF(ISBLANK(D180)=TRUE,\"\",VLOOKUP(D180,'dropdown info'!$C$2:$C$5,2))","v":""}]
[null,null,{"$f":"IF(ISBLANK(D181)=TRUE,\"\",VLOOKUP(D181,'dropdown info'!$C$2:$C$5,2))","v":""}]
[null,null,{"$f":"IF(ISBLANK(D182)=TRUE,\"\",VLOOKUP(D182,'dropdown info'!$C$2:$C$5,2))","v":""}]
[null,null,{"$f":"IF(ISBLANK(D183)=TRUE,\"\",VLOOKUP(D183,'dropdown info'!$C$2:$C$5,2))","v":""}]
[null,null,{"$f":"IF(ISBLANK(D184)=TRUE,\"\",VLOOKUP(D184,'dropdown info'!$C$2:$C$5,2))","v":""}]
[null,null,{"$f":"IF(ISBLANK(D185)=TRUE,\"\",VLOOKUP(D185,'dropdown info'!$C$2:$C$5,2))","v":""}]
[null,null,{"$f":"IF(ISBLANK(D186)=TRUE,\"\",VLOOKUP(D186,'dropdown info'!$C$2:$C$5,2))","v":""}]
[null,null,{"$f":"IF(ISBLANK(D187)=TRUE,\"\",VLOOKUP(D187,'dropdown info'!$C$2:$C$5,2))","v":""}]
[null,null,{"$f":"IF(ISBLANK(D188)=TRUE,\"\",VLOOKUP(D188,'dropdown info'!$C$2:$C$5,2))","v":""}]
[null,null,{"$f":"IF(ISBLANK(D189)=TRUE,\"\",VLOOKUP(D189,'dropdown info'!$C$2:$C$5,2))","v":""}]
[null,null,{"$f":"IF(ISBLANK(D190)=TRUE,\"\",VLOOKUP(D190,'dropdown info'!$C$2:$C$5,2))","v":""}]
[null,null,{"$f":"IF(ISBLANK(D191)=TRUE,\"\",VLOOKUP(D191,'dropdown info'!$C$2:$C$5,2))","v":""}]
[null,null,{"$f":"IF(ISBLANK(D192)=TRUE,\"\",VLOOKUP(D192,'dropdown info'!$C$2:$C$5,2))","v":""}]
[null,null,{"$f":"IF(ISBLANK(D193)=TRUE,\"\",VLOOKUP(D193,'dropdown info'!$C$2:$C$5,2))","v":""}]
[null,null,{"$f":"IF(ISBLANK(D194)=TRUE,\"\",VLOOKUP(D194,'dropdown info'!$C$2:$C$5,2))","v":""}]
[null,null,{"$f":"IF(ISBLANK(D195)=TRUE,\"\",VLOOKUP(D195,'dropdown info'!$C$2:$C$5,2))","v":""}]
[null,null,{"$f":"IF(ISBLANK(D196)=TRUE,\"\",VLOOKUP(D196,'dropdown info'!$C$2:$C$5,2))","v":""}]
[null,null,{"$f":"IF(ISBLANK(D197)=TRUE,\"\",VLOOKUP(D197,'dropdown info'!$C$2:$C$5,2))","v":""}]
[null,null,{"$f":"IF(ISBLANK(D198)=TRUE,\"\",VLOOKUP(D198,'dropdown info'!$C$2:$C$5,2))","v":""}]
[null,null,{"$f":"IF(ISBLANK(D199)=TRUE,\"\",VLOOKUP(D199,'dropdown info'!$C$2:$C$5,2))","v":""}]
[null,null,{"$f":"IF(ISBLANK(D200)=TRUE,\"\",VLOOKUP(D200,'dropdown info'!$C$2:$C$5,2))","v":""}]
[null,null,{"$f":"IF(ISBLANK(D201)=TRUE,\"\",VLOOKUP(D201,'dropdown info'!$C$2:$C$5,2))","v":""}]
[null,null,{"$f":"IF(ISBLANK(D202)=TRUE,\"\",VLOOKUP(D202,'dropdown info'!$C$2:$C$5,2))","v":""}]
[null,null,{"$f":"IF(ISBLANK(D203)=TRUE,\"\",VLOOKUP(D203,'dropdown info'!$C$2:$C$5,2))","v":""}]
[null,null,{"$f":"IF(ISBLANK(D204)=TRUE,\"\",VLOOKUP(D204,'dropdown info'!$C$2:$C$5,2))","v":""}]
[null,null,{"$f":"IF(ISBLANK(D205)=TRUE,\"\",VLOOKUP(D205,'dropdown info'!$C$2:$C$5,2))","v":""}]
[null,null,{"$f":"IF(ISBLANK(D206)=TRUE,\"\",VLOOKUP(D206,'dropdown info'!$C$2:$C$5,2))","v":""}]
[null,null,{"$f":"IF(ISBLANK(D207)=TRUE,\"\",VLOOKUP(D207,'dropdown info'!$C$2:$C$5,2))","v":""}]
[null,null,{"$f":"IF(ISBLANK(D208)=TRUE,\"\",VLOOKUP(D208,'dropdown info'!$C$2:$C$5,2))","v":""}]
[null,null,{"$f":"IF(ISBLANK(D209)=TRUE,\"\",VLOOKUP(D209,'dropdown info'!$C$2:$C$5,2))","v":""}]
[null,null,{"$f":"IF(ISBLANK(D210)=TRUE,\"\",VLOOKUP(D210,'dropdown info'!$C$2:$C$5,2))","v":""}]
[null,null,{"$f":"IF(ISBLANK(D211)=TRUE,\"\",VLOOKUP(D211,'dropdown info'!$C$2:$C$5,2))","v":""}]
[null,null,{"$f":"IF(ISBLANK(D212)=TRUE,\"\",VLOOKUP(D212,'dropdown info'!$C$2:$C$5,2))","v":""}]
[null,null,{"$f":"IF(ISBLANK(D213)=TRUE,\"\",VLOOKUP(D213,'dropdown info'!$C$2:$C$5,2))","v":""}]
[null,null,{"$f":"IF(ISBLANK(D214)=TRUE,\"\",VLOOKUP(D214,'dropdown info'!$C$2:$C$5,2))","v":""}]
[null,null,{"$f":"IF(ISBLANK(D215)=TRUE,\"\",VLOOKUP(D215,'dropdown info'!$C$2:$C$5,2))","v":""}]
[null,null,{"$f":"IF(ISBLANK(D216)=TRUE,\"\",VLOOKUP(D216,'dropdown info'!$C$2:$C$5,2))","v":""}]
[null,null,{"$f":"IF(ISBLANK(D217)=TRUE,\"\",VLOOKUP(D217,'dropdown info'!$C$2:$C$5,2))","v":""}]
[null,null,{"$f":"IF(ISBLANK(D218)=TRUE,\"\",VLOOKUP(D218,'dropdown info'!$C$2:$C$5,2))","v":""}]
[null,null,{"$f":"IF(ISBLANK(D219)=TRUE,\"\",VLOOKUP(D219,'dropdown info'!$C$2:$C$5,2))","v":""}]
[null,null,{"$f":"IF(ISBLANK(D220)=TRUE,\"\",VLOOKUP(D220,'dropdown info'!$C$2:$C$5,2))","v":""}]
[null,null,{"$f":"IF(ISBLANK(D221)=TRUE,\"\",VLOOKUP(D221,'dropdown info'!$C$2:$C$5,2))","v":""}]
[null,null,{"$f":"IF(ISBLANK(D222)=TRUE,\"\",VLOOKUP(D222,'dropdown info'!$C$2:$C$5,2))","v":""}]
[null,null,{"$f":"IF(ISBLANK(D223)=TRUE,\"\",VLOOKUP(D223,'dropdown info'!$C$2:$C$5,2))","v":""}]
[null,null,{"$f":"IF(ISBLANK(D224)=TRUE,\"\",VLOOKUP(D224,'dropdown info'!$C$2:$C$5,2))","v":""}]
[null,null,{"$f":"IF(ISBLANK(D225)=TRUE,\"\",VLOOKUP(D225,'dropdown info'!$C$2:$C$5,2))","v":""}]
[null,null,{"$f":"IF(ISBLANK(D226)=TRUE,\"\",VLOOKUP(D226,'dropdown info'!$C$2:$C$5,2))","v":""}]
[null,null,{"$f":"IF(ISBLANK(D227)=TRUE,\"\",VLOOKUP(D227,'dropdown info'!$C$2:$C$5,2))","v":""}]
[null,null,{"$f":"IF(ISBLANK(D228)=TRUE,\"\",VLOOKUP(D228,'dropdown info'!$C$2:$C$5,2))","v":""}]
[null,null,{"$f":"IF(ISBLANK(D229)=TRUE,\"\",VLOOKUP(D229,'dropdown info'!$C$2:$C$5,2))","v":""}]
[null,null,{"$f":"IF(ISBLANK(D230)=TRUE,\"\",VLOOKUP(D230,'dropdown info'!$C$2:$C$5,2))","v":""}]
[null,null,{"$f":"IF(ISBLANK(D231)=TRUE,\"\",VLOOKUP(D231,'dropdown info'!$C$2:$C$5,2))","v":""}]
[null,null,{"$f":"IF(ISBLANK(D232)=TRUE,\"\",VLOOKUP(D232,'dropdown info'!$C$2:$C$5,2))","v":""}]
[null,null,{"$f":"IF(ISBLANK(D233)=TRUE,\"\",VLOOKUP(D233,'dropdown info'!$C$2:$C$5,2))","v":""}]
[null,null,{"$f":"IF(ISBLANK(D234)=TRUE,\"\",VLOOKUP(D234,'dropdown info'!$C$2:$C$5,2))","v":""}]
[null,null,{"$f":"IF(ISBLANK(D235)=TRUE,\"\",VLOOKUP(D235,'dropdown info'!$C$2:$C$5,2))","v":""}]
[null,null,{"$f":"IF(ISBLANK(D236)=TRUE,\"\",VLOOKUP(D236,'dropdown info'!$C$2:$C$5,2))","v":""}]
[null,null,{"$f":"IF(ISBLANK(D237)=TRUE,\"\",VLOOKUP(D237,'dropdown info'!$C$2:$C$5,2))","v":""}]
[null,null,{"$f":"IF(ISBLANK(D238)=TRUE,\"\",VLOOKUP(D238,'dropdown info'!$C$2:$C$5,2))","v":""}]
[null,null,{"$f":"IF(ISBLANK(D239)=TRUE,\"\",VLOOKUP(D239,'dropdown info'!$C$2:$C$5,2))","v":""}]
[null,null,{"$f":"IF(ISBLANK(D240)=TRUE,\"\",VLOOKUP(D240,'dropdown info'!$C$2:$C$5,2))","v":""}]
[null,null,{"$f":"IF(ISBLANK(D241)=TRUE,\"\",VLOOKUP(D241,'dropdown info'!$C$2:$C$5,2))","v":""}]
[null,null,{"$f":"IF(ISBLANK(D242)=TRUE,\"\",VLOOKUP(D242,'dropdown info'!$C$2:$C$5,2))","v":""}]
[null,null,{"$f":"IF(ISBLANK(D243)=TRUE,\"\",VLOOKUP(D243,'dropdown info'!$C$2:$C$5,2))","v":""}]
[null,null,{"$f":"IF(ISBLANK(D244)=TRUE,\"\",VLOOKUP(D244,'dropdown info'!$C$2:$C$5,2))","v":""}]
[null,null,{"$f":"IF(ISBLANK(D245)=TRUE,\"\",VLOOKUP(D245,'dropdown info'!$C$2:$C$5,2))","v":""}]
[null,null,{"$f":"IF(ISBLANK(D246)=TRUE,\"\",VLOOKUP(D246,'dropdown info'!$C$2:$C$5,2))","v":""}]
[null,null,{"$f":"IF(ISBLANK(D247)=TRUE,\"\",VLOOKUP(D247,'dropdown info'!$C$2:$C$5,2))","v":""}]
[null,null,{"$f":"IF(ISBLANK(D248)=TRUE,\"\",VLOOKUP(D248,'dropdown info'!$C$2:$C$5,2))","v":""}]

{"sheet":"dropdown info","index":1,"n_rows":38,"n_cols":9,"rows_kept":38,"cut":false,"hidden":false,"merged":[]}
["Document","PISA_framework","Assessment_methodology","Exemption_policy","Type of respondent",null,"Disclose comments?",null,"ISO codes"]
["PISA_framework","1 Introduction","1 General introduction","Purpose","Authority",null,"Yes",null,"AT"]
["Assessment_methodology","2 Scope","2 Use of this assessment methodology","1.      Process for identifying payment schemes/arrangements which fall within the scope of the PISA framework","Scheme or arrangement",null,"Yes, but anonymous",null,"BE"]
["Exemption_policy","2.1 A single oversight framework for electronic payment instruments, payment schemes and arrangements – the PISA framework","2.1 Identifying applicable principles and key considerations","2.      Exemption criteria","Payment service provider",null,"No",null,"CY"]
[null,"2.2 Payment instruments","2.2 Scope of the individual assessments","2.1    Criterion 1: the size of the end user or payment service provider base","Associations",null,null,null,"DE"]
[null,"2.3 Payment schemes and arrangements","2.3 Self-assessment by the governance body","2.2    Criterion 2: the degree of market penetration in terms of volume","Private individual",null,null,null,"EE"]
[null,"3 Who this framework is aimed at","2.4 Oversight report","2.3    Criterion 3: the degree of market penetration in terms of value ","Other",null,null,null,"ES"]
[null,"4 Coordination with payment system overseers and/or supervisory authorities","2.5 Observance levels for each principle","2.4    Criterion 4: geographic relevance",null,null,null,null,"FI"]
[null,"5 Proportionality considerations","2.6 Follow-up actions, recommendations and timeframe for addressing each issue of concern",null,null,null,null,null,"FR"]
[null,"6 Risks and applicable oversight principles","3 Other oversight requirements for payment schemes/arrangements",null,null,null,null,null,"GR"]
[null,"7 Organisation of oversight activity","3.1 Information about major changes",null,null,null,null,null,"IE"]
[null,"8.1 Draft definitions","3.2 Major incident reporting",null,null,null,null,null,"IT"]
[null,"8.2 Documents replaced by this framework","3.3 Statistical information",null,null,null,null,null,"LV"]
[null,null,"4 Applicable principles, key considerations and the resulting assessment questions",null,null,null,null,null,"LT"]
[null,null,"Principle 1: legal basis",null,null,null,null,null,"LU"]
[null,null,"Principle 2: governance",null,null,null,null,null,"MT"]
[null,null,"Principle 3: framework for the comprehensive management of risks",null,null,null,null,null,"Other"]
[null,null,"Principle 4: credit risk",null,null,null,null,null,"NL"]
[null,null,"Principle 5: collateral",null,null,null,null,null,"PT"]
[null,null,"Principle 6: not applicable to a payment scheme/arrangement",null,null,null,null,null,"SK"]
[null,null,"Principle 7: liquidity risk",null,null,null,null,null,"SI"]
[null,null,"Principle 8: settlement finality and crediting end users"]
[null,null,"Principle 9: money settlement"]
[null,null,"Principle 10-12: not applicable to a payment scheme/arrangement"]
[null,null,"Principle 13: payment service provider default rules and procedures"]
[null,null,"Principle 14: not applicable to a payment scheme/arrangement"]
[null,null,"Principle 15: general business risk"]
[null,null,"Principle 16: custody and investment risk"]
[null,null,"Principle 17: operational risk"]
[null,null,"Principle 18: access and participation requirements"]
[null,null,"Principle 19: not applicable to a payment scheme/arrangement"]
[null,null,"Principle 20: not applicable to a payment scheme/arrangement"]
[null,null,"Principle 21: efficiency and effectiveness"]
[null,null,"Principle 22: communication procedures and standards"]
[null,null,"Principle 23: disclosure of rules, key procedures and market data"]
[null,null,"Principle 24: not applicable to a payment scheme/arrangement"]
[null,null,"Annex 1"]
[null,null,"Comparison of PISA with other oversight assessment methodologies"]